{"text_format":"1","workbook":"xlsx","n_sheets":10,"sheets":["Directives","Exigences des champs de données","Catégories d’élèves","Data","L-School","Résumé","Résultat de validation","Approuver l'approbation","Contact","Conseils Scolaires"],"not_rendered":{"charts":0,"images":1,"macros":1,"external_links":0,"defined_names":9,"comments":0,"pivot_tables":0},"unopened":[],"bounds":{"document_bytes":16777216,"sheet_cells":100000,"rows_first":2000,"rows_last":500,"rows_between":2000,"halvings":0,"cell_chars":16384,"cell_head_chars":4096},"cells_cut":0,"cells_raw":0,"read":"whole","date_system":"1900"}

{"sheet":"Directives","index":0,"n_rows":17,"n_cols":4,"rows_kept":17,"cut":false,"hidden":false,"merged":[[16,0,16,1],[5,3,5,19]]}
["Directives"]
[]
["Soumission de données sur les élèves"]
[1,"Inclure une entrée par élève avec un identifiant unique. "]
[2,"Les consortiums sont tenus de créer un identifiant unique pour soumettre ces données. L’identifiant unique ne devrait pas être un nombre ayant un lien avec l’identité de l’élève, c.-à-d. il ne faut pas utiliser le numéro d’identification ou le NISO de l’élève. Les consortiums doivent conserver cet identifiant en dossier et être en mesure de l’utiliser pour établir un lien avec le dossier de l’élève dans la base de données pour le transport."]
[3,"Inclure tous les élèves des conseils scolaires membres de la région géographique desservie par votre consortium, soit à la fois les élèves transportés et ceux qui ne le sont pas.",null,"`"]
[4,"Remarque : Les consortiums devraient indiquer tous les élèves (qu’ils soient transportés ou non) qui font partie de leur région ou qui s’y rendent et qui y fréquentent des écoles."]
[5," Pour les élèves comptant plusieurs adresses (p. ex., Garde partagée, garderie, besoins particuliers), indiquer la distance associée à l’adresse principale du transport."]
[]
["Données et modèle des données"]
[1,"Les données seront inscrites directement dans ce modèle."]
[2,"Les données doivent être tirées de vos données pour l’année scolaire 2019-2020 en cours en date du 31 octobre 2019.  "]
[3,"Consulter l’onglet des exigences relatives aux champs de données pour obtenir des directives détaillées pour chaque champ demandé."]
[4,"S’assurer de ne pas laisser d’enregistrements vides dans les champs suivants : identifiant unique, conseil scolaire, code de l’école, année, code postal, distance (école fréquentée), code de l’élève, admissible, transporté, à l’extérieur du district du conseil, à l’extérieur du territoire desservi."]
[5,"Un onglet L-École dans le modèle pour permettre d’inscrire des détails supplémentaires sur le code de l’école/le NICE/l’adresse. "]
[6,"Utiliser le bouton de validation des données saisies sous l’onglet « Données » avant la soumission afin de repérer des erreurs de données potentielles (p. ex., les champs vides ou les valeurs non valides). Veuillez noter que les macros doivent être activées pour effectuer la validation des données saisies. Il est possible de consulter les résultats détaillés de la vérification de la validation des données saisies sous l’onglet « Résultats de la validation »."]
["Si vous avez des questions, veuillez communiquer avec votre analyste de site. Vous trouverez ses coordonnées sous l’onglet Coordonnées."]

{"sheet":"Exigences des champs de données","index":1,"n_rows":21,"n_cols":2,"rows_kept":21,"cut":false,"hidden":false,"merged":[[1,0,1,1],[17,0,17,1],[20,0,20,1]]}
["Exigences des champs de données"]
["L’exigence du champ de données représente les données extraites du logiciel de transport. Veuillez vous assurer que tous les champs de données sont remplis conformément aux directives et dans l’ordre présenté dans le modèle."]
[]
["Champ","Remarques"]
["Identifiant unique","Les consortiums sont tenus de créer un identifiant unique pour soumettre ces données. L’identifiant unique ne devrait pas être un nombre ayant un lien avec l’identité de l’élève, c.-à-d. il ne faut pas utiliser le numéro d’identification ou le NISO de l’élève.\n\nLes consortiums doivent conserver cet identifiant en dossier et être en mesure de l’utiliser pour établir un lien avec le dossier de l’élève dans la base de données pour le transport."]
["Conseil scolaire","Indiquer le code financier à 5 chiffres du conseil scolaire au sein duquel les élèves fréquentent l’école. (Voir l’onglet <<Conseils Scolaires >> pour obtenir la liste des conseils scolaires.)\n\nLes consortiums qui transportent des élèves autochtones d’une réserve à un conseil scolaire membre doivent aussi inclure ces élèves. Pour ce faire, utilisez le code financier du conseil 22222 et remplissez les autres champs comme vous le feriez pour les autres élèves transportés.\n\nInclure les élèves visés par l’article 23 et ceux des écoles provinciales en utilisant le code approprié (consulter l’onglet « Catégories d’élèves »)."]
["Code de l’école","École fréquentée par l’élève.  Les consortiums peuvent utiliser le NICE de l’école ou le code de l’école du système de transport. Si un code d’école est utilisé, l’onglet L-École doit être rempli afin de pouvoir associer le code de l’école au numéro de l’école figurant dans la Base de données sur l’identification des conseils et des écoles (BDICE)[1]."]
["Année","Les entrées valides pour les années des élèves (M – 12) sont les suivantes : PM, M, 1,2,3,4,5,6,7,8,9,10,11,12,SO"]
["Code postal","Code postal correspondant à l’adresse principale de transport."]
["Distance (école fréquentée)","Distance parcourue entre l’adresse principale de transport et l’école fréquentée.  L’unité relative à la distance sera indiquée en kilomètres."]
["Code de l’élève","Consulter l’onglet « Catégories d’élèves ». "]
["Admissible","O/N (Si l’élève est admissible au transport selon la politique du conseil)"]
["Transporté","O/N (Si l’élève est transporté)"]
["Transport en commun","O/N (Si l’élève reçoit des titres/billets entièrement subventionnés pour le transport)"]
["À l’extérieur du district du conseil","O/N (Si l’adresse principale de transport de l’élève se trouve dans la région du conseil)"]
["À l’extérieur du territoire desservi","O/N (S’il s’agit de l’école désignée pour cet élève en fonction de son adresse et de son programme)"]
[]
["[1] Une liste complète des numéros d’école et des numéros figurant dans la Base de données sur l’identification des conseils et des écoles (BDICE) est accessible par l’entremise du Catalogue de données de l’Ontario à l’adresse:  "]
["https://data.ontario.ca/fr/dataset/ontario-public-school-contact-information"]
[]
["Si vous avez des questions, veuillez communiquer avec votre analyste de site.Vous trouverez ses coordonnées sous l’onglet Coordonnées. "]

{"sheet":"Catégories d’élèves","index":2,"n_rows":19,"n_cols":3,"rows_kept":19,"cut":false,"hidden":false,"merged":[[20,0,20,2],[7,4,9,16]]}
["Hiérarchie de la classification :  Les élèves doivent être classés dans l’ordre suivant :"]
["1.  Élèves exclus du calcul des SBE"]
["2. Exigence en matière de transport"]
["3. Type d’élève"]
[]
["Catégorie de classification de l’élève","Abbreviation/Code ","Définition"]
["Élève d’une école provinciale et d’une école d’application","PS","Élève fréquentant une école provinciale."]
["Article 23","S23","Élève inscrit dans un programme dans des établissements de soins ou de traitement, de services de garde et de services correctionnels."]
["Autochtone","IN","Élève autochtone qui fréquente l’école du CSD grâce à une entente sur les droits de scolarité."]
["Étranger/Visa","VIN","Élève étranger payant des droits de scolarité pour fréquenter l’école publique."]
["Élèves âgés de plus de 21 ans","XX21","Élèves âgés de plus de 21 ans."]
["Accessible en fauteuil roulant","WC","Tous les élèves qui doivent être transportés dans un véhicule spécialement adapté aux fauteuils roulants; il s’agit généralement d’un véhicule équipé d’un appareil élévateur pour les fauteuils roulants. Il pourrait s’agir d’un élève dans un fauteuil roulant ou d’un élève utilisant un autre appareil ou présentant un autre besoin qui doit utiliser un véhicule adapté muni d’un mécanisme élévateur. "]
["Transport des élèves ayant des besoins particuliers","STN","Transport des élèves qui ont besoin de services de transport adapté. (P. ex., ceux qui participent à un programme intégré d’éducation de l’enfance en difficulté et [ou] qui doivent voyager seuls, qui ont besoin d’un accompagnateur dans le véhicule ou qui ont d’autres besoins particuliers en matière de transport). Il s’agit d’un besoin lié au transport et il peut ne pas s’appliquer à tous les élèves qui participent à un programme d’éducation de l’enfance en difficulté (p. ex., un élève ayant un plan d’enseignement individualisé (PEI), mais aucune autre exigence de transport)."]
["Danger","HA","Ces élèves demeurent à une distance raisonnable de marche de l’école, mais sont admissibles au transport parce que le secteur se trouvant dans la distance à parcourir a été jugé dangereux par le conseil pour les élèves de certaines années."]
["Transport de courtoisie","CO","Ces élèves ne sont pas admissibles au transport, mais sont transportés en raison des places libres dans le véhicule. Cette catégorie ne comprend pas les élèves admissibles en raison d’exceptions de la part du conseil scolaire (p. ex., droits acquis). "]
["Immersion en français","FI","Ces élèves participent à un programme d’apprentissage du français (qui comprend le programme intensif et le programme d’immersion)."]
["Élèves doués","GI","Élèves qui participent à des programmes pour les élèves doués. "]
["Programmes à vocation particulière","MA","Élèves qui sont inscrits à une école/un programme au choix (c.-à-d. programmes de baccalauréat international, d’arts spéciaux, de musique ou techniques). "]
["Général ","GEN","Il s’agit du transport d’élèves n’ayant pas de besoins particuliers et d’élèves qui peuvent ou non être admissibles ou bénéficier de services de transport.  Cette catégorie ne comprend pas les élèves qui sont inscrits au programme d’immersion en français ou à un programme à vocation particulière, ni les élèves doués ou ayant des besoins particuliers. Toutes les exceptions approuvées par le conseil, sauf en ce qui a trait au transport de courtoisie, comme les élèves ayant des droits acquis, devraient être incluses dans cette catégorie."]

{"sheet":"Data","index":3,"n_rows":1,"n_cols":12,"rows_kept":1,"cut":false,"hidden":false,"merged":[]}
["Identifiant unique","Conseil scolaire","Code de l’école","Année","Code postal","Distance (école fréquentée)","Code de l’élève","Admissible","Transporté","Transport en commun","À l’extérieur du district du conseil","À l’extérieur du territoire desservi"]

{"sheet":"L-School","index":4,"n_rows":4,"n_cols":4,"rows_kept":4,"cut":false,"hidden":false,"merged":[]}
["Note: Une liste complète des numéros d’école et des numéros figurant dans la Base de données sur l’identification des conseils et des écoles (BDICE) est accessible par l’entremise du Catalogue de données de l’Ontario à l’adresse: "]
["https://data.ontario.ca/fr/dataset/ontario-public-school-contact-information"]
[]
["School code","BSID Number","Full School Name","School Address"]

{"sheet":"Résumé","index":5,"n_rows":23,"n_cols":12,"rows_kept":23,"cut":false,"hidden":false,"merged":[]}
[]
[null,null,"nom du consortium"]
[null,null,"Résumé total des élèves"]
[null,"Code financier \n ","Conseil scolaire","Nombre total d'écoles","Nombre total des élèves","Élèves transportés","Élèves non transportés"]
[null,null,{"$f":"_xlfn.IFNA(VLOOKUP($B5, 'Conseils Scolaires'!$A$2:$C$73, 3, FALSE), \"\")","v":""},null,{"$f":"IF($B5<>\"\", COUNTIFS(INDIRECT(\"Data!$B:$B\"), $B5), \"\")","v":""},{"$f":"IF($B5<>\"\", COUNTIFS(INDIRECT(\"Data!$B:$B\"), $B5, INDIRECT(\"Data!$I:$I\"), \"O\"), \"\")","v":""},{"$f":"IF($B5<>\"\", COUNTIFS(INDIRECT(\"Data!$B:$B\"), $B5, INDIRECT(\"Data!$I:$I\"), \"N\"), \"\")","v":""}]
[null,null,{"$f":"_xlfn.IFNA(VLOOKUP($B6, 'Conseils Scolaires'!$A$2:$C$73, 3, FALSE), \"\")","v":""},null,{"$f":"IF($B6<>\"\", COUNTIFS(INDIRECT(\"Data!$B:$B\"), $B6), \"\")","v":""},{"$f":"IF($B6<>\"\", COUNTIFS(INDIRECT(\"Data!$B:$B\"), $B6, INDIRECT(\"Data!$I:$I\"), \"O\"), \"\")","v":""},{"$f":"IF($B6<>\"\", COUNTIFS(INDIRECT(\"Data!$B:$B\"), $B6, INDIRECT(\"Data!$I:$I\"), \"N\"), \"\")","v":""}]
[null,null,{"$f":"_xlfn.IFNA(VLOOKUP($B7, 'Conseils Scolaires'!$A$2:$C$73, 3, FALSE), \"\")","v":""},null,"","",""]
[null,null,{"$f":"_xlfn.IFNA(VLOOKUP($B8, 'Conseils Scolaires'!$A$2:$C$73, 3, FALSE), \"\")","v":""},null,"","",""]
[null,null,{"$f":"_xlfn.IFNA(VLOOKUP($B9, 'Conseils Scolaires'!$A$2:$C$73, 3, FALSE), \"\")","v":""},null,"","",""]
[null,null,{"$f":"_xlfn.IFNA(VLOOKUP($B10, 'Conseils Scolaires'!$A$2:$C$73, 3, FALSE), \"\")","v":""},null,"","",""]
[null,null,"Total du consortium",{"$f":"SUM(D5:D10)","v":0},{"$f":"SUM(E5:E10)","v":0},0,0]
[]
[null,null,"Résumé des élèves par type (élèves transportés et non transportés)"]
[null,"Code financier \n ","Conseil scolaire","Élèves exclus du calcul des SBE*","Accessible en fauteuil roulant","Transport des élèves ayant des besoins particuliers","Danger","Transport de courtoisie","Immersion en français*","Élèves doués*","Programmes à vocation particulière*","Général*"]
[null,null,{"$f":"C5","v":""},{"$f":"IF($B15<>\"\",\nCOUNTIFS(INDIRECT(\"Data!$B:$B\"), $B15, INDIRECT(\"Data!$G:$G\"), \"=\"&'Catégories d’élèves'!$B$7) +\nCOUNTIFS(INDIRECT(\"Data!$B:$B\"), $B15, INDIRECT(\"Data!$G:$G\"), \"=\"&'Catégories d’élèves'!$B$8) +\nCOUNTIFS(INDIRECT(\"Data!$B:$B\"), $B15, INDIRECT(\"Data!$G:$G\"), \"=\"&'Catégories d’élèves'!$B$9) +\nCOUNTIFS(INDIRECT(\"Data!$B:$B\"), $B15, INDIRECT(\"Data!$G:$G\"), \"=\"&'Catégories d’élèves'!$B$10) +\nCOUNTIFS(INDIRECT(\"Data!$B:$B\"), $B15, INDIRECT(\"Data!$G:$G\"), \"=\"&'Catégories d’élèves'!$B$11), \"\")","v":""},{"$f":"IF($B15<>\"\", COUNTIFS(INDIRECT(\"Data!$B:$B\"), $B15, INDIRECT(\"Data!$G:$G\"), 'Catégories d’élèves'!$B$12), \"\")","v":""},{"$f":"IF($B15<>\"\", COUNTIFS(INDIRECT(\"Data!$B:$B\"), $B15, INDIRECT(\"Data!$G:$G\"), 'Catégories d’élèves'!$B$13), \"\")","v":""},{"$f":"IF($B15<>\"\", COUNTIFS(INDIRECT(\"Data!$B:$B\"), $B15, INDIRECT(\"Data!$G:$G\"), 'Catégories d’élèves'!$B$14), \"\")","v":""},{"$f":"IF($B15<>\"\", COUNTIFS(INDIRECT(\"Data!$B:$B\"), $B15, INDIRECT(\"Data!$G:$G\"), 'Catégories d’élèves'!$B$15), \"\")","v":""},{"$f":"IF($B15<>\"\", COUNTIFS(INDIRECT(\"Data!$B:$B\"), $B15, INDIRECT(\"Data!$G:$G\"), 'Catégories d’élèves'!$B$16), \"\")","v":""},{"$f":"IF($B15<>\"\", COUNTIFS(INDIRECT(\"Data!$B:$B\"), $B15, INDIRECT(\"Data!$G:$G\"), 'Catégories d’élèves'!$B$17), \"\")","v":""},{"$f":"IF($B15<>\"\", COUNTIFS(INDIRECT(\"Data!$B:$B\"), $B15, INDIRECT(\"Data!$G:$G\"), 'Catégories d’élèves'!$B$18), \"\")","v":""},{"$f":"IF($B15<>\"\", COUNTIFS(INDIRECT(\"Data!$B:$B\"), $B15, INDIRECT(\"Data!$G:$G\"), 'Catégories d’élèves'!$B$19), \"\")","v":""}]
[null,null,{"$f":"C6","v":""},{"$f":"IF($B16<>\"\",\nCOUNTIFS(INDIRECT(\"Data!$B:$B\"), $B16, INDIRECT(\"Data!$G:$G\"), \"=\"&'Catégories d’élèves'!$B$7) +\nCOUNTIFS(INDIRECT(\"Data!$B:$B\"), $B16, INDIRECT(\"Data!$G:$G\"), \"=\"&'Catégories d’élèves'!$B$8) +\nCOUNTIFS(INDIRECT(\"Data!$B:$B\"), $B16, INDIRECT(\"Data!$G:$G\"), \"=\"&'Catégories d’élèves'!$B$9) +\nCOUNTIFS(INDIRECT(\"Data!$B:$B\"), $B16, INDIRECT(\"Data!$G:$G\"), \"=\"&'Catégories d’élèves'!$B$10) +\nCOUNTIFS(INDIRECT(\"Data!$B:$B\"), $B16, INDIRECT(\"Data!$G:$G\"), \"=\"&'Catégories d’élèves'!$B$11), \"\")","v":""},{"$f":"IF($B16<>\"\", COUNTIFS(INDIRECT(\"Data!$B:$B\"), $B16, INDIRECT(\"Data!$G:$G\"), 'Catégories d’élèves'!$B$12), \"\")","v":""},{"$f":"IF($B16<>\"\", COUNTIFS(INDIRECT(\"Data!$B:$B\"), $B16, INDIRECT(\"Data!$G:$G\"), 'Catégories d’élèves'!$B$13), \"\")","v":""},{"$f":"IF($B16<>\"\", COUNTIFS(INDIRECT(\"Data!$B:$B\"), $B16, INDIRECT(\"Data!$G:$G\"), 'Catégories d’élèves'!$B$14), \"\")","v":""},{"$f":"IF($B16<>\"\", COUNTIFS(INDIRECT(\"Data!$B:$B\"), $B16, INDIRECT(\"Data!$G:$G\"), 'Catégories d’élèves'!$B$15), \"\")","v":""},{"$f":"IF($B16<>\"\", COUNTIFS(INDIRECT(\"Data!$B:$B\"), $B16, INDIRECT(\"Data!$G:$G\"), 'Catégories d’élèves'!$B$16), \"\")","v":""},{"$f":"IF($B16<>\"\", COUNTIFS(INDIRECT(\"Data!$B:$B\"), $B16, INDIRECT(\"Data!$G:$G\"), 'Catégories d’élèves'!$B$17), \"\")","v":""},{"$f":"IF($B16<>\"\", COUNTIFS(INDIRECT(\"Data!$B:$B\"), $B16, INDIRECT(\"Data!$G:$G\"), 'Catégories d’élèves'!$B$18), \"\")","v":""},{"$f":"IF($B16<>\"\", COUNTIFS(INDIRECT(\"Data!$B:$B\"), $B16, INDIRECT(\"Data!$G:$G\"), 'Catégories d’élèves'!$B$19), \"\")","v":""}]
[null,null,"",{"$f":"IF($B17<>\"\",\nCOUNTIFS(INDIRECT(\"Data!$B:$B\"), $B17, INDIRECT(\"Data!$G:$G\"), \"=\"&'Catégories d’élèves'!$B$7) +\nCOUNTIFS(INDIRECT(\"Data!$B:$B\"), $B17, INDIRECT(\"Data!$G:$G\"), \"=\"&'Catégories d’élèves'!$B$8) +\nCOUNTIFS(INDIRECT(\"Data!$B:$B\"), $B17, INDIRECT(\"Data!$G:$G\"), \"=\"&'Catégories d’élèves'!$B$9) +\nCOUNTIFS(INDIRECT(\"Data!$B:$B\"), $B17, INDIRECT(\"Data!$G:$G\"), \"=\"&'Catégories d’élèves'!$B$10) +\nCOUNTIFS(INDIRECT(\"Data!$B:$B\"), $B17, INDIRECT(\"Data!$G:$G\"), \"=\"&'Catégories d’élèves'!$B$11), \"\")","v":""},{"$f":"IF($B17<>\"\", COUNTIFS(INDIRECT(\"Data!$B:$B\"), $B17, INDIRECT(\"Data!$G:$G\"), 'Catégories d’élèves'!$B$12), \"\")","v":""},{"$f":"IF($B17<>\"\", COUNTIFS(INDIRECT(\"Data!$B:$B\"), $B17, INDIRECT(\"Data!$G:$G\"), 'Catégories d’élèves'!$B$13), \"\")","v":""},{"$f":"IF($B17<>\"\", COUNTIFS(INDIRECT(\"Data!$B:$B\"), $B17, INDIRECT(\"Data!$G:$G\"), 'Catégories d’élèves'!$B$14), \"\")","v":""},{"$f":"IF($B17<>\"\", COUNTIFS(INDIRECT(\"Data!$B:$B\"), $B17, INDIRECT(\"Data!$G:$G\"), 'Catégories d’élèves'!$B$15), \"\")","v":""},{"$f":"IF($B17<>\"\", COUNTIFS(INDIRECT(\"Data!$B:$B\"), $B17, INDIRECT(\"Data!$G:$G\"), 'Catégories d’élèves'!$B$16), \"\")","v":""},{"$f":"IF($B17<>\"\", COUNTIFS(INDIRECT(\"Data!$B:$B\"), $B17, INDIRECT(\"Data!$G:$G\"), 'Catégories d’élèves'!$B$17), \"\")","v":""},{"$f":"IF($B17<>\"\", COUNTIFS(INDIRECT(\"Data!$B:$B\"), $B17, INDIRECT(\"Data!$G:$G\"), 'Catégories d’élèves'!$B$18), \"\")","v":""},{"$f":"IF($B17<>\"\", COUNTIFS(INDIRECT(\"Data!$B:$B\"), $B17, INDIRECT(\"Data!$G:$G\"), 'Catégories d’élèves'!$B$19), \"\")","v":""}]
[null,null,"",{"$f":"IF($B18<>\"\",\nCOUNTIFS(INDIRECT(\"Data!$B:$B\"), $B18, INDIRECT(\"Data!$G:$G\"), \"=\"&'Catégories d’élèves'!$B$7) +\nCOUNTIFS(INDIRECT(\"Data!$B:$B\"), $B18, INDIRECT(\"Data!$G:$G\"), \"=\"&'Catégories d’élèves'!$B$8) +\nCOUNTIFS(INDIRECT(\"Data!$B:$B\"), $B18, INDIRECT(\"Data!$G:$G\"), \"=\"&'Catégories d’élèves'!$B$9) +\nCOUNTIFS(INDIRECT(\"Data!$B:$B\"), $B18, INDIRECT(\"Data!$G:$G\"), \"=\"&'Catégories d’élèves'!$B$10) +\nCOUNTIFS(INDIRECT(\"Data!$B:$B\"), $B18, INDIRECT(\"Data!$G:$G\"), \"=\"&'Catégories d’élèves'!$B$11), \"\")","v":""},{"$f":"IF($B18<>\"\", COUNTIFS(INDIRECT(\"Data!$B:$B\"), $B18, INDIRECT(\"Data!$G:$G\"), 'Catégories d’élèves'!$B$12), \"\")","v":""},{"$f":"IF($B18<>\"\", COUNTIFS(INDIRECT(\"Data!$B:$B\"), $B18, INDIRECT(\"Data!$G:$G\"), 'Catégories d’élèves'!$B$13), \"\")","v":""},{"$f":"IF($B18<>\"\", COUNTIFS(INDIRECT(\"Data!$B:$B\"), $B18, INDIRECT(\"Data!$G:$G\"), 'Catégories d’élèves'!$B$14), \"\")","v":""},{"$f":"IF($B18<>\"\", COUNTIFS(INDIRECT(\"Data!$B:$B\"), $B18, INDIRECT(\"Data!$G:$G\"), 'Catégories d’élèves'!$B$15), \"\")","v":""},{"$f":"IF($B18<>\"\", COUNTIFS(INDIRECT(\"Data!$B:$B\"), $B18, INDIRECT(\"Data!$G:$G\"), 'Catégories d’élèves'!$B$16), \"\")","v":""},{"$f":"IF($B18<>\"\", COUNTIFS(INDIRECT(\"Data!$B:$B\"), $B18, INDIRECT(\"Data!$G:$G\"), 'Catégories d’élèves'!$B$17), \"\")","v":""},{"$f":"IF($B18<>\"\", COUNTIFS(INDIRECT(\"Data!$B:$B\"), $B18, INDIRECT(\"Data!$G:$G\"), 'Catégories d’élèves'!$B$18), \"\")","v":""},{"$f":"IF($B18<>\"\", COUNTIFS(INDIRECT(\"Data!$B:$B\"), $B18, INDIRECT(\"Data!$G:$G\"), 'Catégories d’élèves'!$B$19), \"\")","v":""}]
[null,null,"",{"$f":"IF($B19<>\"\",\nCOUNTIFS(INDIRECT(\"Data!$B:$B\"), $B19, INDIRECT(\"Data!$G:$G\"), \"=\"&'Catégories d’élèves'!$B$7) +\nCOUNTIFS(INDIRECT(\"Data!$B:$B\"), $B19, INDIRECT(\"Data!$G:$G\"), \"=\"&'Catégories d’élèves'!$B$8) +\nCOUNTIFS(INDIRECT(\"Data!$B:$B\"), $B19, INDIRECT(\"Data!$G:$G\"), \"=\"&'Catégories d’élèves'!$B$9) +\nCOUNTIFS(INDIRECT(\"Data!$B:$B\"), $B19, INDIRECT(\"Data!$G:$G\"), \"=\"&'Catégories d’élèves'!$B$10) +\nCOUNTIFS(INDIRECT(\"Data!$B:$B\"), $B19, INDIRECT(\"Data!$G:$G\"), \"=\"&'Catégories d’élèves'!$B$11), \"\")","v":""},{"$f":"IF($B19<>\"\", COUNTIFS(INDIRECT(\"Data!$B:$B\"), $B19, INDIRECT(\"Data!$G:$G\"), 'Catégories d’élèves'!$B$12), \"\")","v":""},{"$f":"IF($B19<>\"\", COUNTIFS(INDIRECT(\"Data!$B:$B\"), $B19, INDIRECT(\"Data!$G:$G\"), 'Catégories d’élèves'!$B$13), \"\")","v":""},{"$f":"IF($B19<>\"\", COUNTIFS(INDIRECT(\"Data!$B:$B\"), $B19, INDIRECT(\"Data!$G:$G\"), 'Catégories d’élèves'!$B$14), \"\")","v":""},{"$f":"IF($B19<>\"\", COUNTIFS(INDIRECT(\"Data!$B:$B\"), $B19, INDIRECT(\"Data!$G:$G\"), 'Catégories d’élèves'!$B$15), \"\")","v":""},{"$f":"IF($B19<>\"\", COUNTIFS(INDIRECT(\"Data!$B:$B\"), $B19, INDIRECT(\"Data!$G:$G\"), 'Catégories d’élèves'!$B$16), \"\")","v":""},{"$f":"IF($B19<>\"\", COUNTIFS(INDIRECT(\"Data!$B:$B\"), $B19, INDIRECT(\"Data!$G:$G\"), 'Catégories d’élèves'!$B$17), \"\")","v":""},{"$f":"IF($B19<>\"\", COUNTIFS(INDIRECT(\"Data!$B:$B\"), $B19, INDIRECT(\"Data!$G:$G\"), 'Catégories d’élèves'!$B$18), \"\")","v":""},{"$f":"IF($B19<>\"\", COUNTIFS(INDIRECT(\"Data!$B:$B\"), $B19, INDIRECT(\"Data!$G:$G\"), 'Catégories d’élèves'!$B$19), \"\")","v":""}]
[null,null,"",{"$f":"IF($B20<>\"\",\nCOUNTIFS(INDIRECT(\"Data!$B:$B\"), $B20, INDIRECT(\"Data!$G:$G\"), \"=\"&'Catégories d’élèves'!$B$7) +\nCOUNTIFS(INDIRECT(\"Data!$B:$B\"), $B20, INDIRECT(\"Data!$G:$G\"), \"=\"&'Catégories d’élèves'!$B$8) +\nCOUNTIFS(INDIRECT(\"Data!$B:$B\"), $B20, INDIRECT(\"Data!$G:$G\"), \"=\"&'Catégories d’élèves'!$B$9) +\nCOUNTIFS(INDIRECT(\"Data!$B:$B\"), $B20, INDIRECT(\"Data!$G:$G\"), \"=\"&'Catégories d’élèves'!$B$10) +\nCOUNTIFS(INDIRECT(\"Data!$B:$B\"), $B20, INDIRECT(\"Data!$G:$G\"), \"=\"&'Catégories d’élèves'!$B$11), \"\")","v":""},{"$f":"IF($B20<>\"\", COUNTIFS(INDIRECT(\"Data!$B:$B\"), $B20, INDIRECT(\"Data!$G:$G\"), 'Catégories d’élèves'!$B$12), \"\")","v":""},{"$f":"IF($B20<>\"\", COUNTIFS(INDIRECT(\"Data!$B:$B\"), $B20, INDIRECT(\"Data!$G:$G\"), 'Catégories d’élèves'!$B$13), \"\")","v":""},{"$f":"IF($B20<>\"\", COUNTIFS(INDIRECT(\"Data!$B:$B\"), $B20, INDIRECT(\"Data!$G:$G\"), 'Catégories d’élèves'!$B$14), \"\")","v":""},{"$f":"IF($B20<>\"\", COUNTIFS(INDIRECT(\"Data!$B:$B\"), $B20, INDIRECT(\"Data!$G:$G\"), 'Catégories d’élèves'!$B$15), \"\")","v":""},{"$f":"IF($B20<>\"\", COUNTIFS(INDIRECT(\"Data!$B:$B\"), $B20, INDIRECT(\"Data!$G:$G\"), 'Catégories d’élèves'!$B$16), \"\")","v":""},{"$f":"IF($B20<>\"\", COUNTIFS(INDIRECT(\"Data!$B:$B\"), $B20, INDIRECT(\"Data!$G:$G\"), 'Catégories d’élèves'!$B$17), \"\")","v":""},{"$f":"IF($B20<>\"\", COUNTIFS(INDIRECT(\"Data!$B:$B\"), $B20, INDIRECT(\"Data!$G:$G\"), 'Catégories d’élèves'!$B$18), \"\")","v":""},{"$f":"IF($B20<>\"\", COUNTIFS(INDIRECT(\"Data!$B:$B\"), $B20, INDIRECT(\"Data!$G:$G\"), 'Catégories d’élèves'!$B$19), \"\")","v":""}]
[null,null,"Total du consortium",{"$f":"SUM(D15:D20)","v":0},{"$f":"SUM(E15:E20)","v":0},0,0,0,0,0,0,0]
[]
[null,null,"* Inclures: Élève d’une école provinciale et d’une école d’application, Article 23,Autochtone, Étranger/Visa, Élèves âgés de plus de 21 ans"]

{"sheet":"Résultat de validation","index":6,"n_rows":6,"n_cols":9,"rows_kept":6,"cut":false,"hidden":false,"merged":[]}
[null,"# d'élèves sans identifiant unique","# d'élèves sans conseil","# d'élèves sans école","# d'élèves sans année","# d'élèves sans distance ou avec distance non numérique","# d'élèves sans code de l’élève","# d'élèves sans\nvaleur dans les colonnes H à L ","# d'élèves sans code postal"]
[null,0,0,0,0,1,0,0,0]
[null,"# dupliquer  identifiant de l’élève ","# identifiant de l’école non valide ","# identifiant de l’école non valide","# année  non valide ","# d'élèves avec distance negatif","# d'élèves avec code de l’élève non valide ","# d'élèves avec code non valide dans les colonnes H à L ","#  code postal pas 6 caractères ou le deuxième caractère n’est pas un chiffre"]
[null,null,1,null,null,0,null,null,0]
[null,"Liste de dupliquer identifiant de l’élève ","Liste d'identifiant de l’école non valide ","Liste d'identifiant de l’école non valide","Liste de année non valide","# d'élèves avec distance plus de 200","Liste de code de l’élève non valide","Liste de code non valide dans les colonnes H à L ","Liste de code postal pas 6 caractères ou le deuxième caractère n’est pas un chiffre"]
[null,null,3,null,null,0]

{"sheet":"Approuver l'approbation","index":7,"n_rows":45,"n_cols":7,"rows_kept":45,"cut":false,"hidden":false,"merged":[[0,1,0,5],[1,1,1,5],[3,2,3,5],[5,2,5,5],[7,1,7,3],[7,4,7,5],[15,1,15,3],[8,1,8,3],[9,1,9,3],[10,1,10,3],[11,1,11,3],[13,1,13,3],[14,1,14,3],[12,1,12,3]]}
[null,"Examen du transport des élèves "]
[null,"Collection de données d'élèves et distance"]
[]
[null,"Nom du Consorium:"]
[]
[null,"Date:"]
[]
[null,"Conseils scolaires"]
[null,null,null,null,"Nombre d'écoles","Nombre d'élèves"]
[null,{"$f":"Résumé!$C5","v":""},null,null,{"$f":"IF(B10<>\"\", Résumé!$D5, \"\")","v":""},{"$f":"Résumé!$E5","v":""},"  "]
[null,{"$f":"Résumé!$C6","v":""},null,null,{"$f":"IF(B11<>\"\", Résumé!$D6, \"\")","v":""},{"$f":"Résumé!$E6","v":""},"  "]
[null,{"$f":"Résumé!$C7","v":""},null,null,{"$f":"IF(B12<>\"\", Résumé!$D7, \"\")","v":""},{"$f":"Résumé!$E7","v":""},"  "]
[null,{"$f":"Résumé!$C8","v":""},null,null,{"$f":"IF(B13<>\"\", Résumé!$D8, \"\")","v":""},{"$f":"Résumé!$E8","v":""}]
[null,{"$f":"Résumé!$C8","v":""},null,null,{"$f":"IF(B14<>\"\", Résumé!$D9, \"\")","v":""},{"$f":"Résumé!$E9","v":""},"  "]
[null,{"$f":"Résumé!$C10","v":""},null,null,{"$f":"IF(B15<>\"\", Résumé!$D10, \"\")","v":""},{"$f":"Résumé!$E10","v":""},"  "]
[null,"Total du consortium",null,null,{"$f":"SUM(E10:E15)","v":0},{"$f":"SUM(F10:F15)","v":0}]
[]
[]
[]
[]
[null,"Signatures requises:"]
[]
[]
[]
[]
[]
[null,"Directeur de l'éducation",null,null,null,"Directeur de l'éducation"]
[null,"[Entrez le nom]",null,null,null,"[Entrez le nom]"]
[null,{"$f":"$B$10","v":""},null,null,null,{"$f":"$B$11","v":""}]
[]
[]
[]
[]
[]
[null,"Directeur de l'éducation",null,null,null,"Directeur de l'éducation"]
[null,"[Entrez le nom]",null,null,null,"[Entrez le nom]"]
[null,{"$f":"$B$12","v":""},null,null,null,{"$f":"$B$13","v":""}]
[]
[]
[]
[]
[]
[null,"Directeur de l'éducation",null,null,null,"Gestionnaire du transport"]
[null,"[Entrez le nom]",null,null,null,"[Entrez le nom]"]
[null,{"$f":"$B$14","v":""},null,null,null,{"$f":"$B$15","v":""}]

{"sheet":"Contact","index":8,"n_rows":36,"n_cols":5,"rows_kept":36,"cut":false,"hidden":false,"merged":[]}
["Consortium#","Consortium Name","Portfolio Analyst ","Email","Phone"]
["Column1","Column2","Column3","Column4","Column5"]
[1,"Windsor-Essex Student Transportation Services/Service de transport des élèves – Windsor-Essex","Christine","Christine.Kouremenos@ontario.ca","(416) 212-3178"]
[2,"Chatham Kent & Lambton Administrative School Services (C.L.A.S.S.)","Christine","Christine.Kouremenos@ontario.ca","(416) 212-3178"]
[3,"Southwestern Ontario Student Transportation Services","Christine","Christine.Kouremenos@ontario.ca","(416) 212-3178"]
[4,"Huron Perth Student Transportation Services","Christine","Christine.Kouremenos@ontario.ca","(416) 212-3178"]
[5,"Student Transportation Service Consortium of Grey-Bruce","Christine","Christine.Kouremenos@ontario.ca","(416) 212-3178"]
[6,"Student Transportation Services of Brant Haldimand Norfolk","Vanissa","Vanissa.Szeto@ontario.ca","(416) 325-4906"]
[7,"Student Transportation Services of Waterloo Region (STSWR)","Christine","Christine.Kouremenos@ontario.ca","(416) 212-3178"]
[8,"Niagara Student Transportation Services","Vanissa","Vanissa.Szeto@ontario.ca","(416) 325-4906"]
[9,"Hamilton-Wentworth Student Transportation Services (HWSTS)","Christine","Christine.Kouremenos@ontario.ca","(416) 212-3178"]
[10,"Service de transport de Wellington - Dufferin Student Transportation Services","Christine","Christine.Kouremenos@ontario.ca","(416) 212-3178"]
[11,"Halton Student Transportation Services ","Nancy","Nancy.Huynh@ontario.ca","416-326-6181"]
[12,"Student Transportation of Peel Region","Nancy","Nancy.Huynh@ontario.ca","416-326-6181"]
[13,"Toronto Student Transportation Group ","Vanissa","Vanissa.Szeto@ontario.ca","(416) 325-4906"]
[14,"Student Transportation Services of York Region","Nancy","Nancy.Huynh@ontario.ca","416-326-6181"]
[15,"Simcoe County Student Transportation Consortium","Nancy","Nancy.Huynh@ontario.ca","416-326-6181"]
[16,"Durham Student Transportation Services","Vanissa","Vanissa.Szeto@ontario.ca","(416) 325-4906"]
[17,"Trillium Lakelands District School Board","Nancy","Nancy.Huynh@ontario.ca","416-326-6181"]
[18,"Student Transportation Services of Central Ontario","Vanissa","Vanissa.Szeto@ontario.ca","(416) 325-4906"]
[19,"Tri-board Student Transportation Services","Vanissa","Vanissa.Szeto@ontario.ca","(416) 325-4906"]
[20,"Renfrew County Joint Transportation Consortium","Sarah","Sarah.Guarino@ontario.ca","(416)314-3465"]
[21,"Student Transportation of Eastern Ontario (STEO)","Vanissa","Vanissa.Szeto@ontario.ca","(416) 325-4906"]
[22,"Ottawa Student Transportation Authority","Sarah","Sarah.Guarino@ontario.ca","(416)314-3465"]
[23,"Nipissing Parry-Sound Student Transportation Services/Services de transport scolaire Nipissing-Parry Sound","Vanissa","Vanissa.Szeto@ontario.ca","(416) 325-4906"]
[24,"North East Tri-Board Student Transportation","Vanissa","Vanissa.Szeto@ontario.ca","(416) 325-4906"]
[25,"Sudbury Student Services Consortium/Consortium de services aux élèves de Sudbury","Nancy","Nancy.Huynh@ontario.ca","416-326-6181"]
[26,"Algoma & Huron Superior Transportation Services","Sarah","Sarah.Guarino@ontario.ca","(416)314-3465"]
[27,"East of Thunder Bay Transportation Consortium","Sarah","Sarah.Guarino@ontario.ca","(416)314-3465"]
[28,"Student Transportation  Services of Thunder Bay","Sarah","Sarah.Guarino@ontario.ca","(416)314-3465"]
[29,"Rainy River District Transportation Services Consortium","Sarah","Sarah.Guarino@ontario.ca","(416)314-3465"]
[30,"Northwestern Ontario Student Services Consortium","Sarah","Sarah.Guarino@ontario.ca","(416)314-3465"]
[31,"Service de transport Francobus","Nancy","Nancy.Huynh@ontario.ca","416-326-6181"]
[32,"Consortium de transport scolaire de l'Est","Sarah","Sarah.Guarino@ontario.ca","(416)314-3465"]
[33,"Consortium de Transport Scolaire d'Ottawa","Sarah","Sarah.Guarino@ontario.ca","(416)314-3465"]
[34,"CSD catholique des Grandes Rivières","Vanissa","Vanissa.Szeto@ontario.ca","(416) 325-4906"]

{"sheet":"Conseils Scolaires","index":9,"n_rows":74,"n_cols":12,"rows_kept":74,"cut":false,"hidden":false,"merged":[]}
["DSB_ID","DSB_NO","Board Names","NorthSouth","UrbanRural","Support","Language","Region",null,"Grade List","Long distance","Language"]
[28002,1,"DSB Ontario North East","North","Northern Ont rural/urban","Public","English","North East",null,"PM",200,"French"]
[28010,2,"Algoma DSB","North","Northern Ont rural/urban","Public","English","North East",null,"M"]
[28029,3,"Rainbow DSB","North","Northern Ont rural/urban","Public","English","North East",null,1]
[28037,4,"Near North DSB","North","Northern Ont rural/urban","Public","English","North East",null,2]
[28045,5.0999999999999996,"Keewatin-Patricia DSB","North","Northern Ont rural","Public","English","North West",null,3]
[28053,5.2,"Rainy River DSB","North","Northern Ont rural","Public","English","North West",null,4]
[28061,6.1,"Lakehead DSB","North","Northern Ont rural/urban","Public","English","North West",null,5]
[28070,6.2,"Superior-Greenstone DSB","North","Northern Ont rural","Public","English","North West",null,6]
[66001,7,"Bluewater DSB","South","Southern Ont rural","Public","English","South West",null,7]
[66010,8,"Avon Maitland DSB","South","Southern Ont rural","Public","English","South West",null,8]
[66028,9,"Greater Essex County DSB","South","Southern Ont rural/urban","Public","English","South West",null,9]
[66036,10,"Lambton Kent DSB","South","Southern Ont rural/urban","Public","English","South West",null,10]
[66044,11,"Thames Valley DSB","South","Southern Ont rural/urban","Public","English","South West",null,11]
[66052,12,"Toronto DSB","South","Urban - Toronto boards","Public","English","GTA",null,12]
[66060,13,"Durham DSB","South","Suburban - GTA excluding French boards","Public","English","GTA",null,"SO"]
[66079,14,"Kawartha Pine Ridge DSB","South","Southern Ont rural/urban","Public","English","Central"]
[66087,15,"Trillium Lakelands DSB","South","Southern Ont rural","Public","English","Central"]
[66095,16,"York Region DSB","South","Suburban - GTA excluding French boards","Public","English","GTA"]
[66109,17,"Simcoe County DSB","South","Southern Ont rural/urban","Public","English","Central"]
[66117,18,"Upper Grand DSB","South","Southern Ont rural/urban","Public","English","Central"]
[66125,19,"Peel DSB","South","Suburban - GTA excluding French boards","Public","English","GTA"]
[66133,20,"Halton DSB","South","Suburban - GTA excluding French boards","Public","English","GTA"]
[66141,21,"Hamilton-Wentworth DSB","South","Southern Ont rural/urban","Public","English","Central"]
[66150,22,"DSB of Niagara","South","Southern Ont rural/urban","Public","English","Central"]
[66168,23,"Grand Erie DSB","South","Southern Ont rural/urban","Public","English","Central"]
[66176,24,"Waterloo Region DSB","South","Southern Ont rural/urban","Public","English","Central"]
[66184,25,"Ottawa-Carleton DSB","South","Southern Ont rural/urban","Public","English","East"]
[66192,26,"Upper Canada DSB","South","Southern Ont rural","Public","English","East"]
[66206,27,"Limestone DSB","South","Southern Ont rural/urban","Public","English","East"]
[66214,28,"Renfrew County DSB","South","Southern Ont rural","Public","English","East"]
[66222,29,"Hastings & Prince Edward DSB","South","Southern Ont rural/urban","Public","English","East"]
[29009,30.1,"Northeastern Catholic DSB","North","Northern Ont rural/urban","Separate","English","North East"]
[29017,30.2,"Nipissing-Parry Sound Cath DSB","North","Northern Ont rural/urban","Separate","English","North East"]
[29025,31,"Huron-Superior Catholic DSB","North","Northern Ont rural/urban","Separate","English","North East"]
[29033,32,"Sudbury Catholic DSB","North","Northern Ont rural/urban","Separate","English","North East"]
[29041,33.1,"Northwest Catholic DSB","North","Northern Ont rural","Separate","English","North West"]
[29050,33.200000000000003,"Kenora Catholic DSB","North","Northern Ont rural","Separate","English","North West"]
[29068,34.1,"Thunder Bay Catholic DSB","North","Northern Ont rural/urban","Separate","English","North West"]
[29076,34.200000000000003,"Superior North Catholic DSB","North","Northern Ont rural","Separate","English","North West"]
[67008,35,"Bruce-Grey Catholic DSB","South","Southern Ont rural","Separate","English","South West"]
[67016,36,"Huron-Perth Catholic DSB","South","Southern Ont rural","Separate","English","South West"]
[67024,37,"Windsor-Essex Catholic DSB","South","Southern Ont rural/urban","Separate","English","South West"]
[67032,38,"London Dist. Catholic School","South","Southern Ont rural/urban","Separate","English","South West"]
[67040,39,"St. Clair Catholic DSB","South","Southern Ont rural/urban","Separate","English","South West"]
[67059,40,"Toronto Catholic DSB","South","Urban - Toronto boards","Separate","English","GTA"]
[67067,41,"PVNC Catholic DSB","South","Southern Ont rural/urban","Separate","English","Central"]
[67075,42,"York Catholic DSB","South","Suburban - GTA excluding French boards","Separate","English","GTA"]
[67083,43,"Dufferin-Peel Catholic DSB","South","Suburban - GTA excluding French boards","Separate","English","GTA"]
[67091,44,"Simcoe Muskoka Catholic DSB","South","Southern Ont rural/urban","Separate","English","Central"]
[67105,45,"Durham Catholic DSB","South","Suburban - GTA excluding French boards","Separate","English","GTA"]
[67113,46,"Halton Catholic DSB","South","Suburban - GTA excluding French boards","Separate","English","GTA"]
[67121,47,"Hamilton-Wentworth Cath DSB","South","Southern Ont rural/urban","Separate","English","Central"]
[67130,48,"Wellington Catholic DSB","South","Southern Ont rural/urban","Separate","English","Central"]
[67148,49,"Waterloo Catholic DSB","South","Southern Ont rural/urban","Separate","English","Central"]
[67156,50,"Niagara Catholic DSB","South","Southern Ont rural/urban","Separate","English","Central"]
[67164,51,"Brant Haldimand Norfolk CDSB","South","Southern Ont rural/urban","Separate","English","Central"]
[67172,52,"Cath DSB of Eastern Ontario","South","Southern Ont rural","Separate","English","East"]
[67180,53,"Ottawa Catholic DSB","South","Southern Ont rural/urban","Separate","English","East"]
[67199,54,"Renfrew County Catholic DSB","South","Southern Ont rural","Separate","English","East"]
[67202,55,"Algonquin & Lakeshore Cath DSB","South","Southern Ont rural/urban","Separate","English","East"]
[28100,56,"CSD du Nord-Est de l'Ontario","North","Northern Ont rural/urban","Public","French","North East"]
[28118,57,"CSP du Grand Nord de l'Ontario","North","Northern Ont rural/urban","Public","French","North East"]
[66303,58,"Conseil scolaire Viamonde","South","Southern Ont rural/urban","Public","French","GTA"]
[66311,59,"CEP de l'Est de l'Ontario","South","Southern Ont rural/urban","Public","French","East"]
[29106,60.1,"CSD cath. des Grandes Rivières","North","Northern Ont rural","Separate","French","North East"]
[29114,60.2,"CSD catholique Franco-Nord","North","Northern Ont rural/urban","Separate","French","North East"]
[29122,61,"CSD cath. du Nouvel-Ontario","North","Northern Ont rural/urban","Separate","French","North East"]
[29130,62,"CSD cath. des Aurores boréales","North","Northern Ont rural/urban","Separate","French","North West"]
[67300,63,"CSC Providence","South","Southern Ont rural/urban","Separate","French","South West"]
[67318,64,"CSC MonAvenir","South","Southern Ont rural/urban","Separate","French","GTA"]
[67326,65,"CSD cath. de l'Est ontarien","South","Southern Ont rural","Separate","French","East"]
[67334,66,"CSD cath. Centre-Est de l'Ont.","South","Southern Ont rural/urban","Separate","French","East"]
[22222,99,"Indigenous Students","N/A","N/A","N/A","N/A","N/A"]